{"text_format":"1","workbook":"xlsx","n_sheets":9,"sheets":["SOFP","SOCI","FVTPL","FVTOCI","AC","Assoc. & Subs.","Loans","AUM","Lists"],"not_rendered":{"charts":0,"images":1,"macros":1,"external_links":0,"defined_names":3,"comments":0,"pivot_tables":0},"unopened":[],"bounds":{"document_bytes":16777216,"sheet_cells":100000,"rows_first":2000,"rows_last":500,"rows_between":2000,"halvings":0,"cell_chars":16384,"cell_head_chars":4096},"cells_cut":0,"cells_raw":0,"read":"whole","date_system":"1900"}

{"sheet":"SOFP","index":0,"n_rows":62,"n_cols":3,"rows_kept":62,"cut":false,"hidden":false,"merged":[]}
[]
[]
[]
[null,"اسم الشركة"]
[null,"الفترة المالية"]
[]
[]
["الموجودات"]
["الموجودات المتداولة",null,"المبالغ بالدينار الكويتي"]
["النقد والنقد المعادل"]
["موجودات مالية مدرجة بالقيمة العادلة من خلال بيان الأرباح والخسائر"]
["عقارات محتفظ بها للمتاجرة"]
["ادوات مالية إسلامية قصيرة الاجل"]
["ذمم مدينة وأرصدة مدينة اخرى"]
["مستحق من اطراف ذات صلة"]
["موجودات متداولة اخرى"]
["إجمالي الموجودات المتداولة",null,{"$f":"SUM(C10:C16)","v":0}]
[]
["الموجودات غير المتداولة"]
["ودائع لاجل"]
["ادوات مالية إسلامية طويلة الاجل"]
["استثمارات عقارية"]
["موجودات مالية مدرجة بالقيمة العادلة من خلال بيان الدخل الشامل الآخر"]
["معدات والآت وممتلكات"]
["موجودات مالية مدرجة بالتكلفة المطفأة"]
["استثمارات في شركات زميلة"]
["استثمارات في شركات تابعة غير مجمعة"]
["قروض وتسهيلات ممنوحة"]
["موجودات غير ملموسة"]
["موجودات غير متداولة اخرى"]
["إجمالي الموجودات غير المتداولة",null,{"$f":"SUM(C20:C30)","v":0}]
["إجمالي الموجودات",null,{"$f":"C17+C31","v":0}]
[]
["المطلوبات"]
["المطلوبات المتداولة"]
["ذمم دائنة وأرصدة دائنة اخرى"]
["مستحق الى اطراف ذات صلة"]
["قروض قصيرة الاجل"]
["الجزء المتداول من القروض طويلة الاجل"]
["مطلوبات متداولة اخرى"]
["إجمالي المطلوبات المتداولة",null,{"$f":"SUM(C36:C40)","v":0}]
[]
["المطلوبات غير المتداولة"]
["مخصص نهاية الخدمة"]
["قروض طويلة الاجل"]
["مطلوبات غير متداولة اخرى"]
["إجمالي المطلوبات غير المتداولة",null,{"$f":"SUM(C44:C46)","v":0}]
["اجمالي المطلوبات",null,{"$f":"C41+C47","v":0}]
[]
["حقوق المساهمين"]
["رأس المال"]
["علاوة إصدار"]
["أسهم خزينة"]
["احتياطي التغير في القيمة العادلة"]
["احتياطيات اخرى"]
["اخرى"]
["أرباح / (خسائر) مرحلة"]
["الحقوق الغير مسيطرة"]
["إجمالي حقوق المساهمين",null,{"$f":"SUM(C51:C58)","v":0}]
["إجمالي المطلوبات وحقوق المساهمين",null,{"$f":"C48+C59","v":0}]
[]
[null,null,"توقيع وختم الشركة"]

{"sheet":"SOCI","index":1,"n_rows":54,"n_cols":3,"rows_kept":54,"cut":false,"hidden":false,"merged":[]}
[]
[]
[]
[null,"اسم الشركة",{"$f":"SOFP!C4","v":0}]
[null,"الفترة المالية",{"$f":"SOFP!C5","v":"00:00:00"}]
[]
[]
["الإيرادات",null,"المبالغ بالدينار الكويتي"]
["إيرادات فوائد"]
["إيرادات توزيع الارباح"]
["إيرادات عمولات واتعاب إدارة"]
["أرباح / (خسائر) بيع موجودات مالية مدرجة بالقيمة العادلة من خلال بيان الارباح والخسائر"]
["أرباح / (خسائر) غير محققة من الموجودات المالية المدرجة من خلال بيان الارباح والخسائر"]
["أرباح / (خسائر) محققة من بيع موجودات مالية مدرجة بالقيمة العادلة من خلال بيان الدخل الشامل الآخر (أدوات دين)"]
["أرباح / (خسائر) بيع عقارات محتفظ بها للمتاجرة"]
["التغير في القيمة العادلة لعقارات محتفظ بها للمتاجرة"]
["أرباح / (خسائر) بيع إستثمارات عقارية"]
["حصة في نتائج شركات زميلة"]
["حصة في نتائج شركات تابعة غير مجمعة"]
["إيرادات ايجارات"]
["إيرادات ادوات مالية إسلامية"]
["أرباح / (خسائر) صرف عملات اجنبية"]
["إيرادات اخرى"]
["إجمالي الإيرادات",null,{"$f":"SUM(C9:C23)","v":0}]
[]
["المصروفات"]
["تكاليف تمويلية"]
["تكاليف موظفين"]
["خسائر الانخفاض بالقيمة"]
["إستهلاكات"]
["مصروفات ادارية وعمومية"]
["مصروفات اخرى"]
["إجمالي المصروفات",null,{"$f":"SUM(C27:C32)","v":0}]
[]
["ربح / (خسارة) الفترة قبل حصة مؤسسة الكويت للتقدم العلمي وضريبة دعم العمالة والزكاة والضرائب",null,{"$f":"C24+C33","v":0}]
[]
["حصة مؤسسة الكويت للتقدم العلمي"]
["ضريبة دعم العمالة الوطنية"]
["زكاة"]
["ضرائب اخرى"]
["صافي ربح / (خسارة) الفترة",null,{"$f":"SUM(C35:C40)","v":0}]
[]
["الدخل الشامل الاخر"]
["التغير في القيمة العادلة للموجودات المالية المدرجة بالقيمة العادلة من خلال بيان الدخل الشامل الآخر"]
["دخل شامل اخر"]
["الدخل الشامل الاخر",null,{"$f":"SUM(C44:C45)","v":0}]
["إجمالي الدخل الشامل",null,{"$f":"C41+C46","v":0}]
[]
["الخاص بــ"]
["مساهمي الشركة الأم"]
["الحقوق غير المسيطرة"]
[null,null,{"$f":"SUM(C50:C51)","v":0}]
[]
[null,null,"توقيع وختم الشركة"]

{"sheet":"FVTPL","index":2,"n_rows":36,"n_cols":11,"rows_kept":36,"cut":false,"hidden":false,"merged":[[3,8,3,10],[4,8,4,10],[5,8,5,10]]}
[]
[]
[]
[null,null,null,null,null,null,null,"اسم الشركة",{"$f":"SOFP!C4","v":0}]
[null,null,null,null,null,null,null,"الفترة المالية",{"$f":"SOFP!C5","v":"00:00:00"}]
[]
[]
[null,null,null,null,null,null,null,null,null,"المبالغ بالدينار الكويتي"]
["البيان","جنسية الشركة (للموجودات الاجنبية)","نوع الاستثمار\n(حقوق ملكية /أدوات دين)","عدد الاسهم التي تمتلكها الشركة","تكلفة السهم","التكلفة","القيمة السوقية / العادلة للسهم","إجمالي القيمة السوقية / العادلة","تاريخ التقييم (للموجودات الغير مسعرة)","ارباح / (خسائر) محققة خلال الفترة","ارباح / (خسائر) غير محققة خلال الفترة"]
["(أ) موجودات مالية مسعرة محلية"]
[null,null,null,null,null,{"$f":"D11*E11","v":0},null,{"$f":"D11*G11","v":0}]
[null,null,null,null,null,{"$f":"D12*E12","v":0},null,{"$f":"D12*G12","v":0}]
[null,null,null,null,null,{"$f":"D13*E13","v":0},null,{"$f":"D13*G13","v":0}]
["اجمالي (أ)",null,null,null,null,null,null,{"$f":"SUM(H11:H13)","v":0},null,{"$f":"SUM(J11:J13)","v":0},{"$f":"SUM(K11:K13)","v":0}]
[]
["(ب) موجودات مالية غير مسعرة محلية "]
[null,null,null,null,null,{"$f":"D17*E17","v":0},null,{"$f":"D17*G17","v":0}]
[null,null,null,null,null,{"$f":"D18*E18","v":0},null,{"$f":"D18*G18","v":0}]
[null,null,null,null,null,{"$f":"D19*E19","v":0},null,0]
["اجمالي (ب)",null,null,null,null,null,null,{"$f":"SUM(H17:H19)","v":0},null,{"$f":"SUM(J17:J19)","v":0},{"$f":"SUM(K17:K19)","v":0}]
[]
["(ج) موجودات مالية مسعرة اجنبية"]
[null,null,null,null,null,{"$f":"D23*E23","v":0},null,{"$f":"D23*G23","v":0}]
[null,null,null,null,null,{"$f":"D24*E24","v":0},null,{"$f":"D24*G24","v":0}]
[null,null,null,null,null,0,null,0]
["اجمالي (ج)",null,null,null,null,null,null,{"$f":"SUM(H23:H25)","v":0},null,{"$f":"SUM(J23:J25)","v":0},{"$f":"SUM(K23:K25)","v":0}]
[]
["(د) موجودات مالية غير مسعرة اجنبية "]
[null,null,null,null,null,{"$f":"D29*E29","v":0},null,{"$f":"D29*G29","v":0}]
[null,null,null,null,null,{"$f":"D30*E30","v":0},null,{"$f":"D30*G30","v":0}]
[null,null,null,null,null,0,null,0]
["اجمالي (د)",null,null,null,null,null,null,{"$f":"SUM(H29:H31)","v":0},null,{"$f":"SUM(J29:J31)","v":0},{"$f":"SUM(K29:K31)","v":0}]
["اجمالي الموجودات المالية المدرجة بالقيمة العادلة من خلال بيان الارباح والخسائر (أ+ب+ج+د) *",null,null,null,null,null,null,{"$f":"H14+H20+H26+H32","v":0},null,{"$f":"J14+J20+J26+J32","v":0},{"$f":"K14+K20+K26+K32","v":0}]
[]
[]
[null,null,null,null,null,null,null,null,null,"توقيع وختم الشركة"]

{"sheet":"FVTOCI","index":3,"n_rows":37,"n_cols":15,"rows_kept":37,"cut":false,"hidden":false,"merged":[[3,12,3,14],[4,12,4,14],[5,12,5,14],[5,9,5,11]]}
[]
[]
[]
[null,null,null,null,null,null,null,null,null,null,null,"اسم الشركة",{"$f":"SOFP!C4","v":0}]
[null,null,null,null,null,null,null,null,null,null,null,"الفترة المالية",{"$f":"SOFP!C5","v":"00:00:00"}]
[]
[]
[null,null,null,null,null,null,null,null,null,null,null,null,"المبالغ بالدينار الكويتي"]
["البيان","جنسية الشركة (للموجودات الاجنبية)","نوع الاستثمار\n(حقوق ملكية /أدوات دين)","عدد الاسهم التي تمتلكها الشركة","تكلفة السهم","التكلفة","القيمة السوقية للسهم","القيمة السوقية","تاريخ التقييم (للاسهم الغير مسعرة)","ارباح / (خسائر) محققة للفترة\n(للاستثمارات في أدوات الدين)","ارباح / (خسائر) محققة للفترة\n(للاستثمارات في  حقوق الملكية)","التغير في القيمة العادلة خلال الفترة","خسائر الانخفاض في القيمة خلال الفترة (للاستثمارات في أدوات الدين)","خسائر الانخفاض في القيمة المتراكمة\n(للاستثمارات في أدوات الدين)","الاحتياطي المتراكم للتغير في القيمة العادلة"]
["(أ) موجودات مالية مسعرة محلية"]
[null,null,null,null,null,{"$f":"D11*E11","v":0},null,{"$f":"D11*G11","v":0}]
[null,null,null,null,null,{"$f":"D12*E12","v":0},null,{"$f":"D12*G12","v":0}]
[null,null,null,null,null,0,null,0]
["اجمالي (أ)",null,null,null,null,null,null,{"$f":"SUM(H11:H13)","v":0},null,{"$f":"SUM(J11:J13)","v":0},{"$f":"SUM(K11:K13)","v":0},{"$f":"SUM(L11:L13)","v":0},{"$f":"SUM(M11:M13)","v":0},null,{"$f":"SUM(O11:O13)","v":0}]
[]
["(ب) موجودات مالية غير مسعرة محلية "]
[null,null,null,null,null,{"$f":"D17*E17","v":0},null,{"$f":"D17*G17","v":0}]
[null,null,null,null,null,{"$f":"D18*E18","v":0},null,{"$f":"D18*G18","v":0}]
[null,null,null,null,null,{"$f":"D19*E19","v":0},null,{"$f":"D19*G19","v":0}]
["اجمالي (ب)",null,null,null,null,null,null,{"$f":"SUM(H17:H19)","v":0},null,{"$f":"SUM(J17:J19)","v":0},{"$f":"SUM(K17:K19)","v":0},{"$f":"SUM(L17:L19)","v":0},{"$f":"SUM(M17:M19)","v":0},null,{"$f":"SUM(O17:O19)","v":0}]
[]
["(ج) موجودات مالية مسعرة اجنبية"]
[null,null,null,null,null,{"$f":"D23*E23","v":0},null,{"$f":"D23*G23","v":0}]
[null,null,null,null,null,{"$f":"D24*E24","v":0},null,{"$f":"D24*G24","v":0}]
[null,null,null,null,null,0,null,0]
["اجمالي (ج)",null,null,null,null,null,null,{"$f":"SUM(H23:H25)","v":0},null,{"$f":"SUM(J23:J25)","v":0},{"$f":"SUM(K23:K25)","v":0},{"$f":"SUM(L23:L25)","v":0},{"$f":"SUM(M23:M25)","v":0},null,{"$f":"SUM(O23:O25)","v":0}]
[]
["(د) موجودات مالية غير مسعرة اجنبية "]
[null," ",null,null,null,{"$f":"D29*E29","v":0},null,{"$f":"D29*G29","v":0}]
[null,null,null,null,null,{"$f":"D30*E30","v":0},null,{"$f":"D30*G30","v":0}]
[null,null,null,null,null,{"$f":"D31*E31","v":0},null,{"$f":"D31*G31","v":0}]
["اجمالي (د)",null,null,null,null,null,null,{"$f":"SUM(H29:H31)","v":0},null,{"$f":"SUM(J29:J31)","v":0},{"$f":"SUM(K29:K31)","v":0},{"$f":"SUM(L29:L31)","v":0},{"$f":"SUM(M29:M31)","v":0},null,{"$f":"SUM(O29:O31)","v":0}]
["اجمالي الموجودات المالية المدرجة بالقيمة العادلة من خلال بيان الدخل الشامل الآخر (أ+ب+ج+د) *",null,null,null,null,null,null,{"$f":"H14+H20+H26+H32","v":0},null,{"$f":"J14+J20+J26+J32","v":0},{"$f":"K14+K20+K26+K32","v":0},{"$f":"L14+L20+L26+L32","v":0},{"$f":"M14+M20+M26+M32","v":0},null,{"$f":"O14+O20+O26+O32","v":0}]
[]
[]
[]
[null,null,null,null,null,null,null,null,null,null,null,null,null,"توقيع وختم الشركة"]

{"sheet":"AC","index":4,"n_rows":36,"n_cols":7,"rows_kept":36,"cut":false,"hidden":false,"merged":[[2,5,2,6],[3,5,3,6]]}
[]
[]
[null,null,null,null,"اسم الشركة",{"$f":"SOFP!C4","v":0}]
[null,null,null,null,"الفترة المالية",{"$f":"SOFP!C5","v":"00:00:00"}]
[]
[]
[]
[]
["البيان","جنسية الشركة (للموجودات الاجنبية)","عدد الوحدات","تكلفة الوحدة","إجمالي التكلفة","ارباح / (خسائر) محققة للفترة","خسائر الانخفاض في القيمة خلال الفترة"]
["(أ) موجودات مالية مسعرة محلية"]
[]
[]
[]
["اجمالي (أ)",null,null,null,{"$f":"SUM(E11:E13)","v":0},{"$f":"SUM(F11:F13)","v":0},{"$f":"SUM(G11:G13)","v":0}]
[]
["(ب) موجودات مالية غير مسعرة محلية "]
[]
[]
[]
["اجمالي (ب)",null,null,null,{"$f":"SUM(E17:E19)","v":0},{"$f":"SUM(F17:F19)","v":0},{"$f":"SUM(G17:G19)","v":0}]
[]
["(ج) موجودات مالية مسعرة اجنبية"]
[]
[]
[]
["اجمالي (ج)",null,null,null,{"$f":"SUM(E23:E25)","v":0},{"$f":"SUM(F23:F25)","v":0},{"$f":"SUM(G23:G25)","v":0}]
[]
["(د) موجودات مالية غير مسعرة اجنبية "]
[null," "," ",null," "]
[]
[]
["اجمالي (د)",null,null,null,{"$f":"SUM(E29:E31)","v":0},{"$f":"SUM(F29:F31)","v":0},{"$f":"SUM(G29:G31)","v":0}]
["اجمالي الموجودات المالية المدرجة بالتكلفة المطفأة (أ+ب+ج+د) *",null,null,null,{"$f":"E14+E20+E26+E32","v":0},{"$f":"F14+F20+F26+F32","v":0},{"$f":"G14+G20+G26+G32","v":0}]
[]
[]
[null,null,null,null,null,null,"توقيع وختم الشركة"]

{"sheet":"Assoc. & Subs.","index":5,"n_rows":35,"n_cols":7,"rows_kept":35,"cut":false,"hidden":false,"merged":[[17,5,17,6],[8,5,8,6],[10,5,10,6],[11,5,11,6],[12,5,12,6],[16,5,16,6],[30,5,30,6],[18,5,18,6],[22,5,22,6],[23,5,23,6],[24,5,24,6],[28,5,28,6],[29,5,29,6]]}
[]
[]
[]
[null,null,null,null,null,"اسم الشركة",{"$f":"SOFP!C4","v":0}]
[null,null,null,null,null,"الفترة المالية",{"$f":"SOFP!C5","v":"00:00:00"}]
[]
[]
[null,null,null,null,null,null,"المبالغ بالدينار الكويتي"]
["إسم الشركة","جنسية الشركة","طبيعة نشاط الشركة","رأس مال الشركة المستثمر بها","نسبة المساهمة في رأس مال الشركة","ملاحظات"]
["(أ) الشركات التابعة المحلية"]
[]
[]
[]
[]
[]
["(ب) الشركات التابعة الأجنبية"]
[]
[]
[]
[]
[]
["(ج) الشركات الزميلة المحلية"]
[]
[]
[]
[]
[]
["(د) الشركات الزميلة الأجنبية"]
[]
[]
[]
[]
[]
[]
[null,null,null,null,null,null,"توقيع وختم الشركة"]

{"sheet":"Loans","index":6,"n_rows":30,"n_cols":8,"rows_kept":30,"cut":false,"hidden":false,"merged":[[16,6,16,7],[11,6,11,7],[12,6,12,7],[13,6,13,7],[14,6,14,7],[15,6,15,7]]}
[]
[]
[]
[null,null,null,null,null,null,"اسم الشركة",{"$f":"SOFP!C4","v":0}]
[null,null,null,null,null,null,"الفترة المالية",{"$f":"SOFP!C5","v":"00:00:00"}]
[]
[]
[]
[null,null,null,null,null,null,null,"المبالغ بالدينار الكويتي"]
[]
[]
["م","إسم البنك / المؤسسة المالية","مبلغ القرض","تاريخ بداية القرض","تاريخ استحقاق القرض","معدل الفائدة","ملاحظات"]
[1]
[2,null,null,null,"                                                 "]
[3]
[4]
[5]
[]
[]
[]
[]
[]
[]
[]
[]
[]
[]
[]
[]
[null,null,null,null,null,null,null,"توقيع وختم الشركة"]

{"sheet":"AUM","index":7,"n_rows":40,"n_cols":4,"rows_kept":40,"cut":false,"hidden":false,"merged":[[3,3,3,5],[4,3,4,5]]}
[]
[]
[]
[null,null,"اسم الشركة",{"$f":"SOFP!C4","v":0}]
[null,null,"الفترة المالية",{"$f":"SOFP!C5","v":"00:00:00"}]
[]
[]
[]
[]
[null,"نوع المحفظة","عدد المحافظ / الصناديق","المبالغ بالدينار الكويتي"]
[null,"المحافظ بإدارة الشركة"]
[null,"النقد المتوفر"]
[null,"إجمالي الأوراق المالية المحلية",null,0]
[null,"إجمالي الأوراق المالية الأجنبية",null,0]
[null,"إجمالي المحافظ بإدارة الشركة",{"$f":"SUM(C12:C14)","v":0},{"$f":"SUM(D12:D14)","v":0}]
[null,"المحافظ بإدارة العميل"]
[null,"النقد المتوفر"]
[null,"إجمالي الأوراق المالية المحلية"]
[null,"إجمالي الأوراق المالية الأجنبية"]
[null,"إجمالي المحافظ بإدارة العميل",{"$f":"SUM(C17:C19)","v":0},{"$f":"SUM(D17:D19)","v":0}]
[null,"المحافظ بصفة الأمانة"]
[null,"النقد المتوفر"]
[null,"إجمالي الأوراق المالية المحلية"]
[null,"إجمالي الأوراق المالية الأجنبية"]
[null,"إجمالي المحافظ بصفة الأمانة",{"$f":"SUM(C22:C24)","v":0},{"$f":"SUM(D22:D24)","v":0}]
[null,"صناديق استثمار مدارة"]
[null,"إجمالي صناديق الاستثمار المحلية"]
[null,"إجمالي صناديق الاستثمار الأجنبية"]
[null,"إجمالي صناديق الاستثمار المدارة",{"$f":"SUM(C27:C28)","v":0},{"$f":"SUM(D27:D28)","v":0}]
[null,"ضمانات صادرة للعملاء"]
[null,"إجمالي الضمانات الصادرة لصالح العملاء",{"$f":"C30","v":0},{"$f":"D30","v":0}]
[null,"أخرى"]
[null,"إجمالي الأموال المدارة نيابة عن الغير",{"$f":"C32+C31+C29+C25+C20+C15","v":0},{"$f":"D32+D31+D29+D25+D20+D15","v":0}]
[]
[]
[]
[]
[]
[]
[null,null,null,"توقيع وختم الشركة"]

{"sheet":"Lists","index":8,"n_rows":2,"n_cols":1,"rows_kept":2,"cut":false,"hidden":true,"merged":[]}
["أدوات حقوق ملكية"]
["أدوات دين"]